[Event "Baku Open 2024"]
[Site "Baku"]
[Date "2024.07.03"]
[Round "5.8"]
[White "Abasov, Nijat"]
[Black "Mamedov, Edgar"]
[Result "1-0"]
[ECO "D02"]
[WhiteElo "2621"]
[BlackElo "2410"]
[Annotator "TA"]
[PlyCount "105"]
[EventDate "2024.06.29"]
[EventType "swiss"]
[EventCountry "AZE"]
[SourceTitle "playchess.com"]
[Source "ChessBase"]
[SourceQuality "1"]
[TimeControl "5400+30"]

{[%evp 11,105,0,12,9,17,14,33,10,27,0,3,-2,0,0,0,0,8,0,17,31,44,34,53,62,56,13,38,40,33,42,68,68,53,62,43,71,52,16,18,19,25,18,23,13,14,13,15,0,0,0,102,113,123,114,106,122,120,119,202,180,169,160,221,188,181,177,189,164,172,8,8,8,318,268,232,151,814,839,1200,1148,1129,1008,5110,1552,6186,3696,29956,29958,29983,29984,29984,29985,29992,29992,29993,1194]} 1. d4 {[%emt 0:03:26]} d5 {[%emt 0:00:33]} 2. Nf3 {[%emt 0:00:10]} e6 {[%emt 0:00:36]} 3. Bf4 {[%emt 0:00:38]} Nf6 {[%emt 0:00:56]} 4. e3 {[%emt 0:00:09]} c5 {[%emt 0:00:30]} 5. Nbd2 {[%emt 0:01:42]} Nc6 {[%emt 0:00:25]} 6. c3 {[%emt 0:00:12]} cxd4 {[%emt 0:01:01]} 7. exd4 {[%emt 0:00:07]} Nh5 {[%emt 0:00:06]} 8. Be3 {[%emt 0:00:05]} Bd6 {[%emt 0:00:28]} 9. Bd3 {[%emt 0:00:07] White is slightly better.} Nf6 {[%emt 0:09:00]} 10. h3 {[%emt 0:01:52]} h6 {[%emt 0:03:06]} 11. a4 {[%emt 0:03:54]} O-O {[%emt 0:10:42]} 12. O-O {[%emt 0:00:19]} Qc7 {[%emt 0:03:10]} 13. Re1 {[%emt 0:04:13]} Bd7 {[%emt 0:01:02]} 14. Rc1 {[%emt 0:00:18]} Rac8 {[%emt 0:05:00]} 15. b4 {[%emt 0:02:29]} e5 {[%emt 0:15:56]} 16. dxe5 {[%emt 0:01:53]} Nxe5 {[%emt 0:05:13]} 17. Nxe5 {[%emt 0:03:11]} Bxe5 {[%emt 0:01:04]} 18. a5 {[%emt 0:25:46]} b6 {[%emt 0:03:11]} 19. axb6 {[%emt 0:03:43]} axb6 {[%emt 0:00:05][%cal Oc7d6]} 20. Nf3 {[%emt 0:00:22] aiming for Nxe5.} Bf4 {[%emt 0:04:38]} (20... Bxc3 $2 21. Bd4 $18) 21. Bxf4 {[%emt 0:02:01]} Qxf4 {[%emt 0:03:07]} 22. Ne5 {[%emt 0:00:07] Hoping for g3.} Qg5 {[%emt 0:00:24]} 23. Nxd7 {[%emt 0:01:49]} Nxd7 {[%emt 0:00:05]} 24. Bb5 {[%emt 0:00:18]} Nf6 {[%emt 0:05:03]} 25. Qd4 {[%emt 0:00:37][%cal Oc1d1]} Ne4 {[%emt 0:00:36]} 26. Red1 {[%emt 0:15:13]} (26. Qxb6 $2 Nxc3 27. Rxc3 Rxc3 $19) (26. Ba6 {with more complications.} Rc6 27. f3 Rg6 28. Bf1) 26... Qf6 {[%emt 0:03:52]} (26... Rfd8 {looks sharper.} 27. Ba6 Rc6 28. Bd3 Re8) 27. Qxf6 {[%emt 0:00:14]} (27. Qxd5 $2 Nxc3 (27... Qxf2+ $2 28. Kh1 $19) 28. Qb7 Rb8 $19) 27... Nxf6 {[%emt 0:00:46]} 28. f3 {[%emt 0:00:07]} Rc7 {[%emt 0:00:41]} 29. Kf2 {[%emt 0:00:50]} Rfc8 {[%emt 0:02:45]} 30. Rd3 {[%emt 0:01:24]} d4 {[%emt 0:00:47]} 31. Rxd4 $16 {[%emt 0:03:39]} Rxc3 {[%emt 0:00:05]} 32. Rxc3 {[%emt 0:00:09]} Rxc3 {[%emt 0:00:05][%mdl 4096] Endgame. KRB-KRN} 33. Rd8+ {[%emt 0:01:37]} Kh7 {[%emt 0:00:04]} 34. Rd6 {[%emt 0:00:06]} Nh5 {[%emt 0:09:28]} (34... Kg8 $16) 35. Bd3+ $1 $18 {[%emt 0:00:52]} (35. Rxb6 Nf4 $16) 35... g6 {[%emt 0:00:05] [#]} 36. Ke3 {[%emt 0:00:05] Prevents Nf4.} b5 {[%emt 0:02:18]} (36... Kg7 $16 37. b5 (37. Rxb6 Nf4 $18) 37... Nf6) 37. g4 {[%emt 0:08:04]} Ng7 {[%emt 0:00:50]} 38. Kd4 {[%emt 0:01:27][%csl LRb5,LRc3]} Rc1 {[%emt 0:02:04]} 39. Bxb5 {[%emt 0:00:34]} Ne6+ {[%emt 0:01:16] [#]} 40. Rxe6 $2 {[%emt 0:04:11]} fxe6 {[%emt 0:00:18] KR-KB} 41. Bd3 {[%emt 0:00:03] Threatens to win with b5.} Kg7 $2 {[%emt 0:05:37][%mdl 8192]} (41... Rh1 $11) 42. b5 {[%emt 0:01:03] b6 would now be deadly.} Kf6 {[%emt 0:00:07]} 43. b6 {[%emt 0:00:36][%mdl 1024] White has strong compensation.} Rc6 $2 {[%emt 0:02:01] Loses the game.} (43... Rc8 $16) 44. b7 {[%emt 0:00:15]} e5+ {[%emt 0:00:05]} 45. Kd5 {[%emt 0:00:31]} Rb6 {[%emt 0:00:04] [#]} 46. Ba6 $1 {[%emt 0:00:09][%mdl 512]} Kg5 {[%emt 0:01:46]} (46... Kg7 47. Kc5) 47. Kxe5 {[%emt 0:03:51] Strongly threatening f4+.} Kh4 {[%emt 0:01:57]} 48. f4 {[%emt 0:00:06]} h5 {[%emt 0:00:17][%cal Bh6h5,Bh5g4,Bg4h3][%mdl 32]} 49. f5 {[%emt 0:04:54] White mates.} hxg4 {[%emt 0:00:24]} 50. fxg6 {[%emt 0:04:55]} Rxg6 {[%emt 0:01:15]} 51. b8=Q {[%emt 0:00:10]} ({Worse is} 51. b8=R Rxa6 52. hxg4 Kxg4 $11) 51... gxh3 {[%emt 0:00:33]} 52. Qb4+ {[%emt 0:00:43]} Kg3 {[%emt 0:00:31]} 53. Qf4+ {[%emt 0:00:08] Weighted Error Value: White=0.12 (very precise) /Black=0.41.  Loses game:     	---       	Black=2      Missed win:     	White=1     	---        Mistake:       	---       	Black=3      Inaccurate:     	White=2     	Black=2      OK:         	White=14    	Black=8      Best:        	White=6     	Black=5      Strong:       	White=1     	---} 1-0

[Event "Baku Open 2024"]
[Site "Baku"]
[Date "2024.07.03"]
[Round "5.9"]
[White "Muradli, Mahammad"]
[Black "Soham Kamotra"]
[Result "1/2-1/2"]
[ECO "A07"]
[WhiteElo "2575"]
[BlackElo "2388"]
[Annotator "TA"]
[PlyCount "196"]
[EventDate "2024.06.29"]
[EventType "swiss"]
[EventCountry "AZE"]
[SourceTitle "playchess.com"]
[Source "ChessBase"]
[SourceQuality "1"]
[TimeControl "5400+30"]

{[%evp 9,196,43,53,37,35,40,69,38,35,34,42,33,37,20,30,27,17,16,12,5,13,0,0,0,57,57,61,63,64,68,66,79,75,37,47,39,47,23,49,40,57,28,29,17,35,0,0,0,0,0,0,0,0,0,0,0,0,0,10,5,8,2,2,0,0,0,0,0,8,8,8,8,8,8,8,8,35,0,8,8,238,95,108,110,110,110,150,143,152,152,12795,12725,29936,12845,29943,81,147,147,147,147,147,147,147,0,9,9,9,9,9,9,9,9,9,9,9,9,9,9,9,9,9,9,9,9,9,9,9,9,9,8,8,8,8,8,8,8,8,8,8,8,8,8,8,8,8,8,8,8,8,8,8,8,8,8,8,8,8,8,8,8,8,8,8,8,8,8,8,8,8,8,8,8,8,0,8,0,8,8,8,8,8,8,8,8,8,8,8,8,8]} 1. g3 {[%emt 0:04:41]} Nf6 {[%emt 0:03:47]} 2. Bg2 {[%emt 0:00:07]} d5 {[%emt 0:02:06]} 3. Nf3 {[%emt 0:00:17]} Nbd7 {[%emt 0:01:58]} 4. c4 {[%emt 0:11:49]} dxc4 {[%emt 0:01:11]} 5. Na3 {[%emt 0:00:53]} e5 {[%emt 0:02:37]} 6. Nxc4 {[%emt 0:00:44]} e4 {[%emt 0:03:23]} 7. Ng5 {[%emt 0:06:01][%cal Od1c2]} Qe7 {[%emt 0:06:52]} 8. d3 {[%emt 0:06:08] White is more active. White is slightly better.} exd3 {[%emt 0:03:45]} 9. Qxd3 {[%emt 0:00:05]} h6 {[%emt 0:01:08][%cal Od7c5] ...Nc5! is the strong threat.} 10. Nf3 {[%emt 0:00:38]} Nc5 {[%emt 0:01:09]} 11. Qc2 {[%emt 0:02:16]} (11. Qd1 {simplifies} Be6 12. Qc2 Bxc4 13. Qxc4 Qe4 14. Qxe4+ Ncxe4 15. O-O) 11... Qe4 {[%emt 0:03:26] Prevents Nd4.} 12. Qc3 {[%emt 0:10:28]} (12. Qxe4+ {simplifies} Ncxe4 13. Nfd2 Bb4 14. O-O) 12... Na4 {[%emt 0:15:52]} 13. Qe5+ {[%emt 0:06:15]} Be6 {[%emt 0:01:18]} 14. b3 {[%emt 0:01:40]} Nb6 {[%emt 0:13:52]} 15. Ncd2 {[%emt 0:09:47]} (15. O-O {simplifies} Nxc4 16. Qb5+ Bd7 17. Qxc4 Qxc4 18. bxc4 O-O-O 19. Bb2) 15... Bb4 {[%emt 0:04:05] White must now prevent ...Qxe5.} 16. Qb2 {[%emt 0:07:03]} Qc6 {[%emt 0:03:21]} (16... Qh7 $11) 17. O-O $14 {[%emt 0:02:55]} Bc3 {[%emt 0:12:02] [#] Prevents Nd4.} 18. Nd4 $1 {[%emt 0:02:10]} Qxg2+ {[%emt 0:00:09]} 19. Kxg2 {[%emt 0:00:03]} Bxb2 {[%emt 0:00:06]} 20. Bxb2 {[%emt 0:00:08]} Bd7 {[%emt 0:02:03]} 21. N4f3 {[%emt 0:08:30]} O-O-O {[%emt 0:01:49]} 22. Bxf6 {[%emt 0:04:40]} gxf6 {[%emt 0:00:07]} 23. Nd4 {[%emt 0:01:00]} Kb8 {[%emt 0:04:22]} 24. Rac1 {[%emt 0:01:25]} Rhe8 {[%emt 0:01:26]} 25. e3 {[%emt 0:00:53]} Re5 {[%emt 0:00:30]} 26. b4 {[%emt 0:04:58]} a5 {[%emt 0:00:34]} 27. a3 {[%emt 0:01:54]} axb4 {[%emt 0:02:28]} 28. axb4 {[%emt 0:00:01]} Nd5 {[%emt 0:00:12]} 29. Rb1 {[%emt 0:04:04]} Nxb4 $1 {[%emt 0:05:18]} 30. Rxb4 {[%emt 0:00:42] aiming for Rfb1.} c5 {[%emt 0:00:06][%csl LRb4,LRd4]} 31. Rb6 {[%emt 0:00:42][%cal Of1b1]} (31. f4 Rxe3 32. Nc4 (32. Rb3 $2 cxd4 33. Rfb1 Re2+ 34. Kg1 Bc6 $19) 32... Rd3 $17 (32... cxd4 33. Nxe3 dxe3 34. Kf3 $16)) 31... cxd4 {[%emt 0:00:10]} 32. Rfb1 {[%emt 0:00:11]} Kc8 {[%emt 0:00:35]} 33. exd4 {[%emt 0:02:24]} Re6 {[%emt 0:00:52]} 34. d5 {[%emt 0:00:36]} Rxb6 {[%emt 0:03:17]} 35. Rxb6 $11 {[%emt 0:00:01][%mdl 4096] Endgame. KRB-KRN} Be8 {[%emt 0:01:01]} 36. Rxf6 {[%emt 0:01:37][%cal Od2e4]} Rxd5 {[%emt 0:00:04]} 37. Nc4 {[%emt 0:00:15]} Kc7 {[%emt 0:00:13] Wards off Nb6} 38. Rxh6 {[%emt 0:00:36]} b5 {[%emt 0:00:26]} 39. Ne3 {[%emt 0:00:00]} Rd4 {[%emt 0:01:01]} 40. Rh4 {[%emt 0:01:20]} Rxh4 {[%emt 0:00:40]} 41. gxh4 {[%emt 0:00:01] White wants to play h5. KB-KN} Kd6 {[%emt 0:00:19]} 42. h5 {[%emt 0:00:53]} Ke6 {[%emt 0:01:08]} 43. f4 {[%emt 0:00:19] h6 would now be deadly.} (43. h6 $5 Kf6 $8 44. Nd5+ Kg6 45. h7 $16) 43... Bc6+ {[%emt 0:00:14]} 44. Kf2 {[%emt 0:00:46] Hoping for h6.} b4 $2 {[%emt 0:00:18]} (44... Be4 $11 {and Black is okay.}) 45. Nc2 {[%emt 0:00:32]} (45. h6 $1 $18 {[%cal Rh6h7] and the rest is easy. Threatens to win with h7.} b3 46. h7) 45... b3 {[%emt 0:01:04]} 46. Nd4+ {[%emt 0:00:04]} Kf6 {[%emt 0:00:02]} 47. Nxb3 {[%emt 0:00:14]} (47. Nxc6 $2 {too greedy.} b2 48. h6 b1=Q $19 (48... b1=B $2 {perishes.} 49. Ne5 $18)) 47... Be4 {[%emt 0:00:22]} 48. Kg3 {[%emt 0:00:28] And now Nd4 would win.} Kg7 {[%emt 0:00:25]} 49. Nd4 {[%emt 0:01:05]} f6 $2 {[%emt 0:00:45]} (49... Bd3 $16 50. Kg4 Kf6) 50. Kg4 {[%emt 0:00:25]} Bd3 {[%emt 0:00:20]} 51. Nf5+ $1 {[%emt 0:00:36]} Kh7 {[%emt 0:00:04] [#]} 52. Nd6 $2 {[%emt 0:00:11]} (52. Ng3 $1 {mates} Kg7 53. Kf3 Bc2 54. Ke3 Kf8 55. Kd4 Bh7 56. f5 Kg7 57. Kd5) 52... Kg7 {[%emt 0:00:49]} ({Black should play} 52... Kh6) 53. f5 $16 {[%emt 0:00:29]} Be2+ {[%emt 0:00:06]} 54. Kh4 {[%emt 0:00:01]} Bd3 {[%emt 0:00:07] [#]} 55. Ne8+ $1 {[%emt 0:00:51]} Kf8 {[%emt 0:00:05]} 56. Nd6 {[%emt 0:00:04]} (56. Nxf6 $16 {Threatening mate with Kg5.} Bxf5 57. Kg5) 56... Kg7 $1 $11 {[%emt 0:00:03] The position is equal.} 57. Kg3 {[%emt 0:01:07] With the idea Ne8+.} Kh6 {[%emt 0:02:12]} 58. Kf4 {[%emt 0:00:41] Ne8 would kill now.} (58. Kg4 $5) 58... Kxh5 {[%emt 0:00:43]} 59. Ne8 {[%emt 0:00:18]} Kh4 {[%emt 0:00:16]} 60. Nxf6 {[%emt 0:00:02]} Kh3 {[%emt 0:00:54]} 61. Ng4 {[%emt 0:01:02]} Bb1 {[%emt 0:00:32]} 62. f6 {[%emt 0:00:34]} Ba2 $1 {[%emt 0:00:09]} 63. Kf5 {[%emt 0:00:41]} Bb3 {[%emt 0:00:36]} 64. Kg5 {[%emt 0:00:35]} Ba2 {[%emt 0:00:16]} 65. Kf4 {[%emt 0:00:09]} Bb3 {[%emt 0:00:15]} 66. Ne3 {[%emt 0:00:54] White threatens Ke5 and mate.} Kxh2 {[%emt 0:00:38]} 67. Ke5 {[%emt 0:00:10]} Bf7 {[%emt 0:00:44]} 68. Nf5 {[%emt 0:00:38]} Kh3 {[%emt 0:00:12]} 69. Kd6 {[%emt 0:00:19]} Kg4 {[%emt 0:01:23]} 70. Ke7 {[%emt 0:00:00] Intending Nh6+ and mate.} Bg6 {[%emt 0:00:17]} 71. Nd4 {[%emt 0:01:05]} Kg5 {[%emt 0:00:27]} 72. Nf3+ {[%emt 0:00:35]} Kf4 {[%emt 0:00:07]} 73. Nd2 {[%emt 0:00:33]} (73. Nh4 $5 Bh5 $8 74. Ke6 $11 (74. Ng6+ Bxg6 75. Kf8 Kg5 $11)) 73... Kf5 {[%emt 0:00:18]} (73... Kg5 $5) 74. Nc4 {[%emt 0:00:36]} Bh5 {[%emt 0:00:40]} 75. Nb6 {[%emt 0:00:27]} Bg6 {[%emt 0:00:19]} (75... Ke5 $5) 76. Nd7 {[%emt 0:00:10]} Bh5 {[%emt 0:00:21]} 77. Nf8 {[%emt 0:00:23]} (77. f7 {simplifies} Bxf7 78. Kxf7 Kf4 79. Nc5) 77... Be8 {[%emt 0:00:46]} 78. Ne6 {[%emt 0:00:46]} Bg6 {[%emt 0:00:07]} 79. Nc5 {[%emt 0:00:47]} Bh5 {[%emt 0:00:23]} 80. Nd7 {[%emt 0:00:08]} Bg6 {[%emt 0:00:19]} 81. Kf8 {[%emt 0:00:06]} Bh5 {[%emt 0:01:05]} 82. Kg7 {[%emt 0:00:03]} Be8 {[%emt 0:00:36]} 83. Nb8 {[%emt 0:01:29]} Bh5 {[%emt 0:00:17]} 84. Nc6 {[%emt 0:00:12]} Ke6 {[%emt 0:00:43]} 85. Nd4+ {[%emt 0:00:36]} (85. f7 {simplifies} Bxf7 86. Nd8+ Kf5 87. Kxf7 Kg4 88. Nc6) 85... Ke5 {[%emt 0:00:23]} 86. Ne2 {[%emt 0:00:54]} Be8 {[%emt 0:00:22]} 87. Ng3 {[%emt 0:00:17]} Kf4 {[%emt 0:00:22]} 88. Kf8 {[%emt 0:00:23]} Bg6 {[%emt 0:00:14]} 89. Ne2+ {[%emt 0:00:05]} Ke5 {[%emt 0:00:16]} 90. Ke7 {[%emt 0:00:14]} Kf5 {[%emt 0:00:33]} 91. Nd4+ {[%emt 0:00:24]} Kg5 {[%emt 0:00:21]} 92. Nf3+ {[%emt 0:00:39]} Kf4 {[%emt 0:00:09]} 93. Nh4 {[%emt 0:00:01]} Bh5 {[%emt 0:00:08]} 94. Ke6 {[%emt 0:00:10]} Bg4+ {[%emt 0:00:22]} 95. Kf7 {[%emt 0:00:27] White wants to mate with Ng6+.} Bh5+ {[%emt 0:00:20]} 96. Kg7 {[%emt 0:00:16]} Kg5 {[%emt 0:00:06] [#] Prevents Ng6} 97. Nf3+ $1 {[%emt 0:00:33]} Kf5 {[%emt 0:00:16]} (97... Kf4 98. Nd4) 98. f7 {[%emt 0:00:04]} Bxf7 {[%emt 0:00:35] White really could win this.   Weighted Error Value: White=0.27 (precise) /Black=0.36.  Loses game:     	---       	Black=2      Mistake:       	White=2     	Black=1      Inaccurate:     	White=5     	Black=5      OK:         	White=24    	Black=51     Best:        	White=2     	Black=14     Strong:       	White=2     	Black=3} 1/2-1/2

[Event "Baku Open 2024"]
[Site "Baku"]
[Date "2024.07.03"]
[Round "5.10"]
[White "Aleksandrov, Aleksej"]
[Black "Asadli, Vugar"]
[Result "0-1"]
[ECO "A40"]
[WhiteElo "2405"]
[BlackElo "2560"]
[Annotator "TA"]
[PlyCount "52"]
[EventDate "2024.06.29"]
[EventType "swiss"]
[EventCountry "AZE"]
[SourceTitle "playchess.com"]
[Source "ChessBase"]
[SourceQuality "1"]
[TimeControl "5400+30"]

{[%evp 13,52,36,67,-25,-22,-25,-31,-193,-172,-193,-183,-185,-168,-174,-177,-159,-166,-150,-119,-219,-180,-208,-187,-179,-170,-304,-143,-167,-168,-422,-219,-321,-312,-1215,-1206,-1237,-1231,-1200,-1200,-29993,-29994]} 1. d4 {[%emt 0:00:03]} e6 {[%emt 0:00:22]} 2. c4 {[%emt 0:01:40]} b6 {[%emt 0:00:10]} 3. e4 {[%emt 0:04:19]} Bb4+ {[%emt 0:00:18]} 4. Nc3 {[%emt 0:05:17]} Bb7 {[%emt 0:01:10]} 5. f3 {[%emt 0:00:05]} f5 {[%emt 0:00:49]} 6. exf5 {[%emt 0:00:07]} Nh6 {[%emt 0:00:06][%cal Bg8h6,Bh6f5,Bf5d4][%mdl 32]} 7. fxe6 {[%emt 0:01:46]} Nf5 {[%emt 0:00:13]} 8. Nh3 {[%emt 0:09:12]} (8. Bf4 $14) 8... Qh4+ $1 $11 {[%emt 0:11:55]} 9. Nf2 {[%emt 0:03:19] [#] Black must now prevent a3.} Nxd4 {[%emt 0:14:19]} 10. exd7+ $2 {[%emt 0:02:19]} ({White should try} 10. Be3 $15 Nxe6 11. Qd2) 10... Nxd7 $19 {[%emt 0:02:44]} 11. Be3 {[%emt 0:00:38]} Nf5 {[%emt 0:21:46][%mdl 1024] Black has strong compensation.} 12. Qd2 {[%emt 0:03:05] [#]} O-O-O $1 {[%emt 0:05:46]} 13. Bg5 {[%emt 0:07:03]} Rde8+ {[%emt 0:02:39]} 14. Kd1 {[%emt 0:05:16]} Qh5 {[%emt 0:00:15] And now ...h6 would win. Some like it hot. Black has more active pieces. The white rooks are passive.} 15. Kc1 {[%emt 0:08:23]} h6 $36 {[%emt 0:06:06][%mdl 2048] Black is in control.} 16. Bd3 {[%emt 0:00:28]} Qf7 {[%emt 0:01:46]} (16... Qxg5 17. Qxg5 hxg5 18. Bxf5 Bxc3 19. bxc3 $17) 17. Bf4 {[%emt 0:15:03]} Nc5 {[%emt 0:00:41] ...Nh4 would now be deadly.} 18. Bxf5+ {[%emt 0:04:43]} Qxf5 {[%emt 0:00:04]} 19. Bg3 {[%emt 0:01:29]} (19. Be3 $142) 19... Re7 {[%emt 0:06:05]} (19... h5 $19 {Hoping for ...h4.} 20. Rd1 h4) 20. Qc2 {[%emt 0:00:34]} Qg5+ {[%emt 0:01:14]} 21. Kb1 $2 {[%emt 0:04:12]} (21. Qd2 {was the only defense.}) 21... Rhe8 {[%emt 0:01:21]} (21... Bxc3 $142 22. Nh3 Qd2) 22. Nfd1 {[%emt 0:00:22]} (22. Rd1 {is a better defense.}) 22... Rd7 {[%emt 0:04:47]} 23. Nd5 $2 {[%emt 0:08:29]} (23. Re1 Rxe1 24. Bxe1) 23... Rxd5 {[%emt 0:02:11]} 24. cxd5 {[%emt 0:00:06]} Ba6 {[%emt 0:00:03]} 25. Nf2 {[%emt 0:02:23] Prevents Bd3} Re2 {[%emt 0:00:34]} ({Worse is} 25... Qxd5 26. Rd1 Qf7 27. Ne4 Nxe4 28. fxe4 $11) 26. Ne4 {[%emt 0:02:58]} Bd3 {[%emt 0:00:21] Weighted Error Value: White=0.86/Black=0.24 (precise) .  Loses game:     	White=1     	---        Missed win:     	---       	Black=1      Mistake:       	White=5     	Black=1      OK:         	White=6     	Black=5      Best:        	White=3     	Black=1      Strong:       	---       	Black=2} 0-1

[Event "Baku Open 2024"]
[Site "Baku"]
[Date "2024.07.03"]
[Round "5.11"]
[White "Galaktionov, Artem"]
[Black "Samadov, Read"]
[Result "0-1"]
[ECO "E92"]
[WhiteElo "2358"]
[BlackElo "2503"]
[Annotator "TA"]
[PlyCount "100"]
[EventDate "2024.06.29"]
[EventType "swiss"]
[EventCountry "AZE"]
[SourceTitle "playchess.com"]
[Source "ChessBase"]
[SourceQuality "1"]
[TimeControl "5400+30"]

{[%evp 24,99,0,0,0,0,4,-1,54,42,37,33,44,45,54,0,38,59,66,41,54,36,68,75,70,70,105,111,110,105,127,132,141,151,133,129,194,192,199,212,210,200,211,186,199,21,25,39,53,45,20,27,24,33,42,34,27,35,33,28,33,0,25,24,154,76,87,79,74,55,55,60,51,61,98,-310,-285,-29999]} 1. d4 {[%emt 0:00:03]} Nf6 {[%emt 0:00:05]} 2. c4 {[%emt 0:00:04]} g6 {[%emt 0:00:09]} 3. Nc3 {[%emt 0:00:03]} Bg7 {[%emt 0:00:10]} 4. e4 {[%emt 0:00:04]} d6 {[%emt 0:00:07]} 5. Nf3 {[%emt 0:00:05]} O-O {[%emt 0:00:09]} 6. Be2 {[%emt 0:00:02]} e5 {[%emt 0:00:19]} 7. O-O {[%emt 0:00:05]} h6 {[%emt 0:00:27]} 8. Be3 {[%emt 0:01:24]} Ng4 {[%emt 0:01:10]} 9. Bc1 {[%emt 0:00:03]} Nd7 {[%emt 0:02:04] Recently 9...Nf6 got a lot of attention.} 10. h3 {[%emt 0:02:14] E92: King's Indian: Classical: 6 Be2 e5: 7 dxe5, 7 Be3 and Petrosian System without 7...Nbd7.} exd4 {[%emt 0:07:55]} 11. Nxd4 {[%emt 0:00:14]} Ngf6 {[%emt 0:01:15]} 12. f4 {[%emt 0:04:34]} Re8 {[%emt 0:04:49]} 13. Bf3 {[%emt 0:01:40]} Nc5 $146 {[%emt 0:03:02]} ({Predecessor:} 13... c6 14. Re1 a5 15. Be3 Nc5 16. Bf2 Nfd7 17. Qd2 a4 18. Rad1 Qa5 19. Nc2 Nb6 20. Qxd6 {½-½ Schuurman,P (2234)-Gilbert,J (2098) EU-ch (Women) 7th 2006 (10)}) 14. Re1 $1 {[%emt 0:01:05]} a5 {[%emt 0:04:47]} 15. Nb3 {[%emt 0:04:26]} Ncd7 {[%emt 0:08:22]} (15... Nfd7 $11) 16. Be3 $14 {[%emt 0:05:19]} a4 {[%emt 0:02:06]} 17. Nd4 {[%emt 0:00:09]} Nc5 {[%emt 0:08:49]} 18. Qc2 {[%emt 0:07:39]} c6 {[%emt 0:02:30]} 19. Rab1 {[%emt 0:09:08]} (19. Rad1 $14 Nfd7 20. Bf2) 19... Qa5 {[%emt 0:04:43]} 20. b4 {[%emt 0:04:20]} axb3 {[%emt 0:00:06]} 21. axb3 {[%emt 0:00:03]} Qb4 {[%emt 0:02:26]} 22. Bf2 {[%emt 0:12:21]} Bd7 {[%emt 0:03:29]} 23. Qd2 {[%emt 0:13:07]} Ne6 {[%emt 0:09:28]} 24. Nc2 {[%emt 0:01:07]} Nxe4 {[%emt 0:07:24]} 25. Nxe4 {[%emt 0:02:36]} Qxd2 {[%emt 0:00:04]} 26. Nxd2 {[%emt 0:00:02]} Ra2 {[%emt 0:01:37]} 27. Bd1 {[%emt 0:08:19]} Nxf4 {[%emt 0:01:20]} 28. Rxe8+ {[%emt 0:00:45]} Bxe8 {[%emt 0:00:00]} 29. Ne4 {[%emt 0:03:54]} d5 {[%emt 0:05:03]} (29... Be5 $16 {is a better defense.}) 30. Nb4 $18 {[%emt 0:00:14]} Ra8 {[%emt 0:01:20]} 31. cxd5 {[%emt 0:00:27]} cxd5 {[%emt 0:03:37]} 32. Nc5 $1 {[%emt 0:01:11]} Bb5 {[%emt 0:01:32]} 33. Be3 {[%emt 0:05:52]} Bf8 {[%emt 0:02:15]} 34. Kh1 $2 {[%emt 0:02:23]} (34. Nxb7 Bxb4 35. Bxf4 Ba6 $16) (34. Rc1 $1 $18 Bd6 35. Nxb7 Nxh3+ 36. gxh3 Bxb4 37. Bf3 (37. Bxh6 Ba6 $18)) 34... Re8 $1 $11 {[%emt 0:02:19]} 35. Bxf4 {[%emt 0:01:52]} Re1+ {[%emt 0:00:09]} 36. Kh2 {[%emt 0:00:03]} Bxc5 {[%emt 0:00:03]} 37. Nxd5 {[%emt 0:00:05]} Bc6 $1 {[%emt 0:01:55]} 38. Nc3 {[%emt 0:00:43]} g5 {[%emt 0:01:00]} 39. Bb8 {[%emt 0:01:58]} Bg1+ {[%emt 0:03:26]} 40. Kg3 {[%emt 0:00:01]} Bd4 $1 {[%emt 0:00:42]} 41. Ne2 {[%emt 0:00:08]} Be3 {[%emt 0:00:21]} 42. Be5 {[%emt 0:05:30]} f5 {[%emt 0:01:38]} 43. b4 {[%emt 0:01:47]} Bd5 {[%emt 0:01:40] [#]} (43... Kf8 $1 $11) 44. Nc3 {[%emt 0:00:50]} ({White should try} 44. Bd4 $1 {[%cal Rd4e3]} Rxe2 45. Bxe2 Bxd4 46. Bf3 Be5+ 47. Kf2 Bd4+ 48. Kf1) 44... f4+ $16 {[%emt 0:01:00]} 45. Kg4 {[%emt 0:00:03]} Be6+ {[%emt 0:00:05] [#]} 46. Kf3 $1 {[%emt 0:00:31]} (46. Kh5 Bd2 47. Ne2 Bd5 $18) 46... Bd2 $1 {[%emt 0:00:40]} 47. Ne2 $1 {[%emt 0:02:08]} Bd5+ {[%emt 0:02:28]} 48. Kf2 {[%emt 0:00:32]} Bc4 {[%emt 0:00:41]} 49. Bc3 $2 {[%emt 0:00:31][%mdl 8192]} (49. b5 $16 {and life is bright. Black must now prevent Ra1.} Kf8 50. Bd6+ Kg7 51. Ra1) 49... Bxc3 $19 {[%emt 0:00:41]} 50. Nxc3 $2 {[%emt 0:00:02]} (50. Rc1 $19 b5 (50... Bxb4 $2 {too greedy.} 51. Rxc4 Rxd1 52. Rxb4 $18) (50... Bxe2 $2 51. Bb3+ Kg7 52. Rxc3 $18) 51. Rxc3 Rxd1 52. Rc2) 50... Rf1# {[%emt 0:00:01]} 0-1

[Event "Baku Open 2024"]
[Site "Baku"]
[Date "2024.07.03"]
[Round "5.12"]
[White "Atakishiyev, Elmar"]
[Black "Shyam, Sundar M."]
[Result "1/2-1/2"]
[ECO "D07"]
[WhiteElo "2356"]
[BlackElo "2493"]
[Annotator "TA"]
[PlyCount "21"]
[EventDate "2024.06.29"]
[EventType "swiss"]
[EventCountry "AZE"]
[SourceTitle "playchess.com"]
[Source "ChessBase"]
[SourceQuality "1"]
[TimeControl "5400+30"]

{[%evp 12,21,66,62,50,53,72,53,63,48,73,31]} 1. d4 {[%emt 0:02:27]} d5 {[%emt 0:00:15]} 2. c4 {[%emt 0:00:09]} Nc6 {[%emt 0:00:07]} 3. Nf3 {[%emt 0:00:23]} Bg4 {[%emt 1:31:38]} 4. Nc3 {[%emt 0:04:48]} Nf6 {[%emt 0:00:00][%cal Bg8f6,Bf6d5,Bd5c3][%mdl 32]} 5. cxd5 {[%emt 0:12:59]} Nxd5 {[%emt 0:00:00]} 6. e4 {[%emt 0:05:56]} Bxf3 {[%emt 0:00:00]} 7. gxf3 {[%emt 0:00:09]} Nxc3 {[%emt 0:00:00]} 8. bxc3 {[%emt 0:00:07]} e5 {[%emt 0:00:00][%cal Re5d4]} 9. Bb5 {[%emt 0:03:26]} Bd6 {[%emt 0:00:00]} 10. Rg1 {[%emt 0:09:51] White is more active.} Kf8 {[%emt 0:00:00]} 11. Rh1 {[%emt 0:55:45] Black got outplayed after the opening.   Weighted Error Value: White=0.16 (very precise) /Black=0.13 (very precise) .  Inaccurate:     	White=1     	---} 1/2-1/2